[Event "*** Titled Tuesday Blitz"]
[Site "Chess.com"]
[Date "2020.05.19"]
[Round "9"]
[White "vanea_03"]
[Black "santosalberto1987"]
[Result "1-0"]
[WhiteElo "2637"]
[BlackElo "2478"]
[TimeControl "180+1"]
[EndTime "13:47:40 PDT"]
[Termination "vanea_03 won on time"]

1. Nf3 {[%clk 0:03:00.9]} 1... d5 {[%clk 0:02:59.6]} 2. e3 {[%clk 0:03:00.6]}
2... Nf6 {[%clk 0:02:59.9]} 3. b3 {[%clk 0:02:59.7]} 3... Bf5 {[%clk 0:02:58.6]}
4. Bb2 {[%clk 0:02:58.7]} 4... e6 {[%clk 0:02:59.1]} 5. Be2 {[%clk 0:02:55.5]}
5... h6 {[%clk 0:02:58.8]} 6. O-O {[%clk 0:02:55.3]} 6... Nbd7 {[%clk
0:02:58.9]} 7. d3 {[%clk 0:02:55.6]} 7... Be7 {[%clk 0:02:58.7]} 8. Ne5 {[%clk
0:02:56]} 8... Nxe5 {[%clk 0:02:58.2]} 9. Bxe5 {[%clk 0:02:56.9]} 9... O-O
{[%clk 0:02:57.8]} 10. Nd2 {[%clk 0:02:57.5]} 10... Nd7 {[%clk 0:02:57.3]} 11.
Bb2 {[%clk 0:02:57.9]} 11... Bf6 {[%clk 0:02:57.3]} 12. Bxf6 {[%clk 0:02:54.6]}
12... Nxf6 {[%clk 0:02:55]} 13. Bf3 {[%clk 0:02:50.6]} 13... a5 {[%clk
0:02:52.9]} 14. a3 {[%clk 0:02:49.2]} 14... c6 {[%clk 0:02:52.7]} 15. Qe2 {[%clk
0:02:49.1]} 15... Qc7 {[%clk 0:02:48.1]} 16. e4 {[%clk 0:02:48.8]} 16... dxe4
{[%clk 0:02:48.1]} 17. dxe4 {[%clk 0:02:49.4]} 17... Bg6 {[%clk 0:02:48]} 18.
Rad1 {[%clk 0:02:42.8]} 18... Rfd8 {[%clk 0:02:46.8]} 19. Nc4 {[%clk 0:02:27.9]}
19... b5 {[%clk 0:02:42.4]} 20. Nb2 {[%clk 0:02:26.7]} 20... Rxd1 {[%clk
0:02:39.4]} 21. Rxd1 {[%clk 0:02:25.8]} 21... Rd8 {[%clk 0:02:40.3]} 22. Rxd8+
{[%clk 0:02:24.7]} 22... Qxd8 {[%clk 0:02:41.2]} 23. e5 {[%clk 0:02:25.3]} 23...
Nd5 {[%clk 0:02:41.1]} 24. c4 {[%clk 0:01:59.3]} 24... bxc4 {[%clk 0:02:36.5]}
25. Nxc4 {[%clk 0:02:00.2]} 25... a4 {[%clk 0:01:55.9]} 26. bxa4 {[%clk
0:01:54.2]} 26... Nc3 {[%clk 0:01:49.2]} 27. Qd2 {[%clk 0:01:54.2]} 27... Qxd2
{[%clk 0:01:28.8]} 28. Nxd2 {[%clk 0:01:55.1]} 28... c5 {[%clk 0:01:12.6]} 29.
a5 {[%clk 0:01:53.7]} 29... Nb5 {[%clk 0:01:12]} 30. Be2 {[%clk 0:01:34.7]}
30... Na7 {[%clk 0:01:11.3]} 31. Nb3 {[%clk 0:01:33.4]} 31... Nc6 {[%clk
0:00:51.4]} 32. a6 {[%clk 0:01:33.4]} 32... Nxe5 {[%clk 0:00:51.5]} 33. Nxc5
{[%clk 0:01:28.5]} 33... Nc6 {[%clk 0:00:47.6]} 34. Nd7 {[%clk 0:01:06.9]} 34...
Na7 {[%clk 0:00:44.7]} 35. f3 {[%clk 0:01:03.1]} 35... f6 {[%clk 0:00:40]} 36.
a4 {[%clk 0:00:48.6]} 36... Be8 {[%clk 0:00:39.3]} 37. Bb5 {[%clk 0:00:47.1]}
37... Bxd7 {[%clk 0:00:38.5]} 38. Bxd7 {[%clk 0:00:47]} 38... Kf7 {[%clk
0:00:39.1]} 39. Kf2 {[%clk 0:00:44.7]} 39... Ke7 {[%clk 0:00:38.1]} 40. Bb5
{[%clk 0:00:45.2]} 40... Kd6 {[%clk 0:00:37.2]} 41. Ke3 {[%clk 0:00:44.9]} 41...
g5 {[%clk 0:00:34.7]} 42. Ke4 {[%clk 0:00:42.4]} 42... Nc8 {[%clk 0:00:23.1]}
43. g4 {[%clk 0:00:35.8]} 43... Na7 {[%clk 0:00:22.8]} 44. f4 {[%clk 0:00:33.7]}
44... gxf4 {[%clk 0:00:22.1]} 45. Kxf4 {[%clk 0:00:34.6]} 45... Nc8 {[%clk
0:00:21]} 46. Kg3 {[%clk 0:00:31.9]} 46... Ke5 {[%clk 0:00:16.1]} 47. Kh4 {[%clk
0:00:31.3]} 47... Na7 {[%clk 0:00:13.4]} 48. Kh5 {[%clk 0:00:26.6]} 48... Kf4
{[%clk 0:00:13.5]} 49. Be2 {[%clk 0:00:23]} 49... f5 {[%clk 0:00:10.1]} 50. h3
{[%clk 0:00:20.2]} 50... fxg4 {[%clk 0:00:03]} 51. hxg4 {[%clk 0:00:18.7]} 51...
Ke3 {[%clk 0:00:02.8]} 52. Bc4 {[%clk 0:00:18.2]} 52... e5 {[%clk 0:00:01.9]}
53. Kxh6 {[%clk 0:00:18.4]} 53... Kd4 {[%clk 0:00:02.1]} 54. Bf1 {[%clk
0:00:18]} 1-0

[Event "*** Titled Tuesday Blitz"]
[Site "Chess.com"]
[Date "2020.05.19"]
[Round "9"]
[White "ameetghasi100"]
[Black "Shukh_Nikolay"]
[Result "0-1"]
[WhiteElo "2710"]
[BlackElo "2569"]
[TimeControl "180+1"]
[EndTime "13:47:45 PDT"]
[Termination "Shukh_Nikolay won on time"]

1. c4 {[%clk 0:03:00.9]} 1... e5 {[%clk 0:02:59]} 2. e3 {[%clk 0:02:59.7]} 2...
Nc6 {[%clk 0:02:57.7]} 3. Nc3 {[%clk 0:03:00.1]} 3... g6 {[%clk 0:02:57.3]} 4.
a3 {[%clk 0:02:57.5]} 4... Bg7 {[%clk 0:02:50.3]} 5. b4 {[%clk 0:02:58]} 5... f5
{[%clk 0:02:47.2]} 6. Bb2 {[%clk 0:02:50.2]} 6... d6 {[%clk 0:02:45.8]} 7. d4
{[%clk 0:02:39.7]} 7... e4 {[%clk 0:02:38.8]} 8. h4 {[%clk 0:02:35.3]} 8... Nf6
{[%clk 0:02:27]} 9. h5 {[%clk 0:02:19.8]} 9... Nxh5 {[%clk 0:02:14.4]} 10. Rxh5
{[%clk 0:02:18.9]} 10... gxh5 {[%clk 0:02:14.3]} 11. Qxh5+ {[%clk 0:02:19.8]}
11... Kf8 {[%clk 0:02:14.4]} 12. Nh3 {[%clk 0:02:19.1]} 12... Qe8 {[%clk
0:02:09.7]} 13. Nf4 {[%clk 0:02:03.1]} 13... Ne7 {[%clk 0:01:56.2]} 14. Nb5
{[%clk 0:01:43.4]} 14... Qd8 {[%clk 0:01:35.6]} 15. f3 {[%clk 0:01:20.9]} 15...
c6 {[%clk 0:01:34.1]} 16. Nc3 {[%clk 0:01:21.1]} 16... exf3 {[%clk 0:01:03.8]}
17. Qxf3 {[%clk 0:01:12.6]} 17... Ng6 {[%clk 0:00:47.1]} 18. Nh5 {[%clk
0:01:12.3]} 18... Qh4+ {[%clk 0:00:44.6]} 19. g3 {[%clk 0:01:09.5]} 19... Qg4
{[%clk 0:00:43.4]} 20. Qxg4 {[%clk 0:01:08.5]} 20... fxg4 {[%clk 0:00:43.6]} 21.
Nxg7 {[%clk 0:01:03.1]} 21... Kxg7 {[%clk 0:00:43.4]} 22. d5 {[%clk 0:01:04]}
22... Ne5 {[%clk 0:00:41.4]} 23. Ne4 {[%clk 0:01:01]} 23... Kh6 {[%clk
0:00:27.4]} 24. O-O-O {[%clk 0:01:00]} 24... Rf8 {[%clk 0:00:24.4]} 25. Nxd6
{[%clk 0:00:58.8]} 25... Nf3 {[%clk 0:00:21.4]} 26. Bd3 {[%clk 0:00:57.6]} 26...
cxd5 {[%clk 0:00:17.9]} 27. Rh1+ {[%clk 0:00:56.5]} 27... Kg5 {[%clk 0:00:17.2]}
28. Rxh7 {[%clk 0:00:48.8]} 28... Be6 {[%clk 0:00:15.7]} 29. c5 {[%clk
0:00:33.5]} 29... Ne1 {[%clk 0:00:15.1]} 30. Bb1 {[%clk 0:00:24.8]} 30... Rf1
{[%clk 0:00:14]} 31. Rg7+ {[%clk 0:00:20.6]} 31... Kh5 {[%clk 0:00:13.7]} 32.
Rh7+ {[%clk 0:00:18.2]} 32... Kg5 {[%clk 0:00:13.9]} 33. Kd2 {[%clk 0:00:11.8]}
33... Nf3+ {[%clk 0:00:12.6]} 34. Kc2 {[%clk 0:00:12]} 34... Rf2+ {[%clk
0:00:11.1]} 35. Kc3 {[%clk 0:00:10.2]} 35... Nd2 {[%clk 0:00:10.3]} 36. Bd3
{[%clk 0:00:09.6]} 36... Nc4 {[%clk 0:00:06.1]} 37. Rg7+ {[%clk 0:00:05.5]}
37... Kh5 {[%clk 0:00:05.4]} 38. Bxc4 {[%clk 0:00:03.6]} 38... dxc4 {[%clk
0:00:05]} 39. b5 {[%clk 0:00:02.4]} 39... Rf3 {[%clk 0:00:04]} 40. Kb4 {[%clk
0:00:02]} 40... Rxe3 {[%clk 0:00:03.6]} 41. Bd4 {[%clk 0:00:02.1]} 41... Rd3
{[%clk 0:00:03.2]} 42. Be5 {[%clk 0:00:01.7]} 42... Rb3+ {[%clk 0:00:03.1]} 43.
Ka4 {[%clk 0:00:02]} 43... c3 {[%clk 0:00:03.6]} 44. Bf4 {[%clk 0:00:02.3]}
44... c2 {[%clk 0:00:02.3]} 45. Rg5+ {[%clk 0:00:02.4]} 45... Kh6 {[%clk
0:00:02.4]} 46. Re5+ {[%clk 0:00:03.3]} 46... Kg7 {[%clk 0:00:02.1]} 47. Rxe6
{[%clk 0:00:04.2]} 47... Rc3 {[%clk 0:00:02.2]} 48. Re7+ {[%clk 0:00:04.6]}
48... Kf6 {[%clk 0:00:02]} 49. Rf7+ {[%clk 0:00:04.6]} 49... Ke6 {[%clk
0:00:02.5]} 50. Bc1 {[%clk 0:00:05.3]} 50... Rxc5 {[%clk 0:00:02.1]} 51. Rf4
{[%clk 0:00:04.3]} 51... Kxd6 {[%clk 0:00:02.2]} 52. Rf6+ {[%clk 0:00:04.5]}
52... Kd5 {[%clk 0:00:02.9]} 53. Rf4 {[%clk 0:00:05.1]} 53... Rc4+ {[%clk
0:00:03.2]} 54. Rxc4 {[%clk 0:00:05.7]} 54... Kxc4 {[%clk 0:00:04.1]} 55. Ka5
{[%clk 0:00:05.3]} 55... Kc3 {[%clk 0:00:04.3]} 0-1

[Event "*** Titled Tuesday Blitz"]
[Site "Chess.com"]
[Date "2020.05.19"]
[Round "9"]
[White "praveenb2002"]
[Black "MomchilPetkov"]
[Result "1-0"]
[WhiteElo "2721"]
[BlackElo "2533"]
[TimeControl "180+1"]
[EndTime "13:47:45 PDT"]
[Termination "praveenb2002 won by checkmate"]

1. e4 {[%clk 0:02:59.5]} 1... c6 {[%clk 0:02:59.5]} 2. d4 {[%clk 0:02:59.1]}
2... d5 {[%clk 0:03:00.4]} 3. e5 {[%clk 0:02:58.9]} 3... Bf5 {[%clk 0:03:00.8]}
4. Nf3 {[%clk 0:02:58.7]} 4... e6 {[%clk 0:03:00.8]} 5. Be2 {[%clk 0:02:57.1]}
5... Ne7 {[%clk 0:03:00.9]} 6. O-O {[%clk 0:02:55.7]} 6... h6 {[%clk 0:03:01.2]}
7. Nbd2 {[%clk 0:02:53]} 7... Nd7 {[%clk 0:02:59.7]} 8. Nb3 {[%clk 0:02:53.2]}
8... g5 {[%clk 0:02:59.8]} 9. c3 {[%clk 0:02:46.6]} 9... Bg7 {[%clk 0:02:56.1]}
10. Ne1 {[%clk 0:02:46.4]} 10... f6 {[%clk 0:02:42.5]} 11. Bh5+ {[%clk
0:02:37.7]} 11... Bg6 {[%clk 0:02:28.8]} 12. Bxg6+ {[%clk 0:02:37.5]} 12... Nxg6
{[%clk 0:02:29.7]} 13. Qh5 {[%clk 0:02:37.7]} 13... Nf8 {[%clk 0:02:27.4]} 14.
f4 {[%clk 0:02:34]} 14... gxf4 {[%clk 0:02:19.2]} 15. exf6 {[%clk 0:02:28.8]}
15... Bxf6 {[%clk 0:01:54.5]} 16. Bxf4 {[%clk 0:02:27.8]} 16... Qe7 {[%clk
0:01:51.6]} 17. Nd3 {[%clk 0:02:18.4]} 17... O-O-O {[%clk 0:01:50.3]} 18. Bg3
{[%clk 0:02:18.8]} 18... Bg5 {[%clk 0:01:47.8]} 19. Rae1 {[%clk 0:02:17.6]}
19... Rg8 {[%clk 0:01:45.6]} 20. Nbc5 {[%clk 0:02:05.2]} 20... b6 {[%clk
0:01:38.3]} 21. Nb3 {[%clk 0:01:57.2]} 21... Nd7 {[%clk 0:01:34.1]} 22. a4
{[%clk 0:01:52.7]} 22... Bh4 {[%clk 0:01:11.4]} 23. Bxh4 {[%clk 0:01:41.9]}
23... Nxh4 {[%clk 0:01:12.3]} 24. g3 {[%clk 0:01:39.7]} 24... Ng6 {[%clk
0:01:08.6]} 25. Qxh6 {[%clk 0:01:37.2]} 25... Rg7 {[%clk 0:00:57.9]} 26. Qe3
{[%clk 0:01:35.3]} 26... Re8 {[%clk 0:00:38.1]} 27. Nf4 {[%clk 0:01:34.9]} 27...
Nxf4 {[%clk 0:00:34.6]} 28. Rxf4 {[%clk 0:01:34.9]} 28... Qd6 {[%clk 0:00:32.6]}
29. Qf2 {[%clk 0:01:19.2]} 29... Ree7 {[%clk 0:00:31.1]} 30. Nd2 {[%clk
0:01:18.4]} 30... Kb7 {[%clk 0:00:31.4]} 31. Kh1 {[%clk 0:01:14.7]} 31... e5
{[%clk 0:00:31.5]} 32. dxe5 {[%clk 0:01:13.3]} 32... Nxe5 {[%clk 0:00:32.4]} 33.
Qf1 {[%clk 0:01:05.7]} 33... c5 {[%clk 0:00:21.7]} 34. Nf3 {[%clk 0:01:01.9]}
34... Ng6 {[%clk 0:00:18.9]} 35. Rf5 {[%clk 0:00:57.3]} 35... Rxe1 {[%clk
0:00:18.7]} 36. Qxe1 {[%clk 0:00:56]} 36... Re7 {[%clk 0:00:19.6]} 37. Qd2
{[%clk 0:00:55.3]} 37... d4 {[%clk 0:00:18.7]} 38. cxd4 {[%clk 0:00:55]} 38...
cxd4 {[%clk 0:00:17.2]} 39. Qxd4 {[%clk 0:00:49.8]} 39... Qc6 {[%clk 0:00:15.8]}
40. Qd5 {[%clk 0:00:48.6]} 40... Qxd5 {[%clk 0:00:12.3]} 41. Rxd5 {[%clk
0:00:49.5]} 41... Re3 {[%clk 0:00:12.9]} 42. Nd2 {[%clk 0:00:31.5]} 42... Ne7
{[%clk 0:00:12.3]} 43. Rd4 {[%clk 0:00:24.8]} 43... Nc6 {[%clk 0:00:12.1]} 44.
Rd7+ {[%clk 0:00:17.7]} 44... Kc8 {[%clk 0:00:12]} 45. Rf7 {[%clk 0:00:18]}
45... Re1+ {[%clk 0:00:12.3]} 46. Kg2 {[%clk 0:00:18.1]} 46... Ra1 {[%clk
0:00:12.5]} 47. Rf4 {[%clk 0:00:17.6]} 47... Ne5 {[%clk 0:00:12.6]} 48. h4
{[%clk 0:00:15.7]} 48... Nd3 {[%clk 0:00:13]} 49. Rc4+ {[%clk 0:00:15.2]} 49...
Kb7 {[%clk 0:00:12.8]} 50. b3 {[%clk 0:00:15.2]} 50... Re1 {[%clk 0:00:13.1]}
51. Re4 {[%clk 0:00:11.6]} 51... Rd1 {[%clk 0:00:13.5]} 52. Nc4 {[%clk
0:00:11.3]} 52... Rb1 {[%clk 0:00:13.1]} 53. Re7+ {[%clk 0:00:10.3]} 53... Kc8
{[%clk 0:00:12.8]} 54. Rxa7 {[%clk 0:00:10.1]} 54... Rxb3 {[%clk 0:00:12.3]} 55.
h5 {[%clk 0:00:10.6]} 55... Rc3 {[%clk 0:00:11.7]} 56. Nxb6+ {[%clk 0:00:10.8]}
56... Kb8 {[%clk 0:00:12.2]} 57. Rf7 {[%clk 0:00:09.7]} 57... Ne5 {[%clk
0:00:12.3]} 58. Nd7+ {[%clk 0:00:09.6]} 58... Nxd7 {[%clk 0:00:12]} 59. Rxd7
{[%clk 0:00:10.5]} 59... Rc5 {[%clk 0:00:12.5]} 60. h6 {[%clk 0:00:10.3]} 60...
Rh5 {[%clk 0:00:12.6]} 61. h7 {[%clk 0:00:10.7]} 61... Kc8 {[%clk 0:00:12.8]}
62. Rg7 {[%clk 0:00:11.3]} 62... Kd8 {[%clk 0:00:13.6]} 63. Rg8+ {[%clk
0:00:11.9]} 63... Ke7 {[%clk 0:00:13.8]} 64. h8=Q {[%clk 0:00:12.8]} 64... Rxh8
{[%clk 0:00:14.5]} 65. Rxh8 {[%clk 0:00:13.7]} 65... Kf6 {[%clk 0:00:15.4]} 66.
Rb8 {[%clk 0:00:13.8]} 66... Kg5 {[%clk 0:00:16.3]} 67. a5 {[%clk 0:00:14.3]}
67... Kg6 {[%clk 0:00:17.2]} 68. a6 {[%clk 0:00:15.2]} 68... Kf7 {[%clk
0:00:18.1]} 69. a7 {[%clk 0:00:16.1]} 69... Ke7 {[%clk 0:00:18.9]} 70. a8=Q
{[%clk 0:00:16.7]} 70... Kd6 {[%clk 0:00:19.8]} 71. Qa6+ {[%clk 0:00:16.9]}
71... Kc7 {[%clk 0:00:20.7]} 72. Rb7+ {[%clk 0:00:17.2]} 72... Kc8 {[%clk
0:00:21.6]} 73. Qa8# {[%clk 0:00:17.8]} 1-0

[Event "*** Titled Tuesday Blitz"]
[Site "Chess.com"]
[Date "2020.05.19"]
[Round "9"]
[White "ValeriyGrinev"]
[Black "Andrii_Prydun"]
[Result "1/2-1/2"]
[WhiteElo "2532"]
[BlackElo "2387"]
[TimeControl "180+1"]
[EndTime "13:47:47 PDT"]
[Termination "Game drawn by stalemate"]

1. c4 {[%clk 0:03:00.9]} 1... c6 {[%clk 0:02:59.4]} 2. e4 {[%clk 0:02:59.9]}
2... d5 {[%clk 0:02:58.2]} 3. exd5 {[%clk 0:03:00.2]} 3... cxd5 {[%clk
0:02:59.1]} 4. d4 {[%clk 0:03:00.9]} 4... Nf6 {[%clk 0:02:58.5]} 5. Nc3 {[%clk
0:03:01.5]} 5... g6 {[%clk 0:02:59]} 6. cxd5 {[%clk 0:03:01]} 6... Bg7 {[%clk
0:02:59.1]} 7. Qb3 {[%clk 0:03:01]} 7... O-O {[%clk 0:02:57.9]} 8. Be2 {[%clk
0:03:01.5]} 8... Qb6 {[%clk 0:02:39.2]} 9. Qxb6 {[%clk 0:02:55.6]} 9... axb6
{[%clk 0:02:40.1]} 10. Bf3 {[%clk 0:02:54.8]} 10... Rd8 {[%clk 0:02:39.1]} 11.
d6 {[%clk 0:02:47.6]} 11... exd6 {[%clk 0:02:31.2]} 12. d5 {[%clk 0:02:45.4]}
12... Nbd7 {[%clk 0:02:28.5]} 13. Be3 {[%clk 0:02:41.2]} 13... Nc5 {[%clk
0:02:09.2]} 14. Rd1 {[%clk 0:02:36]} 14... Bg4 {[%clk 0:02:07.6]} 15. h3 {[%clk
0:02:31.4]} 15... Bxf3 {[%clk 0:02:05.8]} 16. Nxf3 {[%clk 0:02:32.3]} 16... Nfe4
{[%clk 0:02:06.2]} 17. Nxe4 {[%clk 0:02:23.1]} 17... Nxe4 {[%clk 0:02:06.3]} 18.
Bxb6 {[%clk 0:02:23.5]} 18... Rdc8 {[%clk 0:02:05.9]} 19. Bd4 {[%clk 0:02:23.6]}
19... Rxa2 {[%clk 0:02:05.1]} 20. O-O {[%clk 0:02:18]} 20... Bxd4 {[%clk
0:01:49.6]} 21. Rxd4 {[%clk 0:02:18.9]} 21... Nf6 {[%clk 0:01:49.7]} 22. Rb4
{[%clk 0:02:17.3]} 22... Rc2 {[%clk 0:01:44.6]} 23. Rxb7 {[%clk 0:02:14.5]}
23... Raxb2 {[%clk 0:01:44.5]} 24. Rxb2 {[%clk 0:02:07.7]} 24... Rxb2 {[%clk
0:01:44]} 25. Rc1 {[%clk 0:01:55.6]} 25... Rb5 {[%clk 0:01:38.3]} 26. Rc7 {[%clk
0:01:39.8]} 26... Rxd5 {[%clk 0:01:36.3]} 27. h4 {[%clk 0:01:39.1]} 27... h6
{[%clk 0:01:36]} 28. g3 {[%clk 0:01:38.7]} 28... Kg7 {[%clk 0:01:35.8]} 29. Kg2
{[%clk 0:01:38.4]} 29... Ne4 {[%clk 0:01:30]} 30. Re7 {[%clk 0:01:35.8]} 30...
Nd2 {[%clk 0:01:29.9]} 31. Nxd2 {[%clk 0:01:35.4]} 31... Rxd2 {[%clk 0:01:30.8]}
32. Rd7 {[%clk 0:01:35.9]} 32... Kf6 {[%clk 0:01:30.9]} 33. Kf3 {[%clk 0:01:36]}
33... Ke6 {[%clk 0:01:27.2]} 34. Rd8 {[%clk 0:01:36.3]} 34... Ke7 {[%clk
0:01:24.7]} 35. Ra8 {[%clk 0:01:36.1]} 35... h5 {[%clk 0:01:24.9]} 36. Ra7+
{[%clk 0:01:33.3]} 36... Ke6 {[%clk 0:01:25.2]} 37. Ke3 {[%clk 0:01:33.3]} 37...
Rb2 {[%clk 0:01:24]} 38. Rc7 {[%clk 0:01:33.6]} 38... Rb3+ {[%clk 0:01:23.8]}
39. Ke4 {[%clk 0:01:33.4]} 39... Rb4+ {[%clk 0:01:22.6]} 40. Ke3 {[%clk
0:01:33.4]} 40... d5 {[%clk 0:01:21]} 41. Ra7 {[%clk 0:01:32.3]} 41... Rb3+
{[%clk 0:01:18.5]} 42. Kf4 {[%clk 0:01:29.7]} 42... Rb4+ {[%clk 0:01:01.7]} 43.
Ke3 {[%clk 0:01:29.1]} 43... f6 {[%clk 0:00:57.7]} 44. Ra8 {[%clk 0:01:13.2]}
44... Kf5 {[%clk 0:00:53.3]} 45. Rd8 {[%clk 0:01:11.6]} 45... Rb3+ {[%clk
0:00:43.2]} 46. Kd4 {[%clk 0:01:11.5]} 46... Rf3 {[%clk 0:00:43]} 47. Rxd5+
{[%clk 0:01:11.1]} 47... Kg4 {[%clk 0:00:43.2]} 48. Rd7 {[%clk 0:01:03.9]} 48...
Rxf2 {[%clk 0:00:41.4]} 49. Rg7 {[%clk 0:01:02.4]} 49... g5 {[%clk 0:00:40.7]}
50. hxg5 {[%clk 0:01:02.2]} 50... fxg5 {[%clk 0:00:41.6]} 51. Ke3 {[%clk
0:00:56.2]} 51... Rg2 {[%clk 0:00:41]} 52. Ra7 {[%clk 0:00:56.8]} 52... Rxg3+
{[%clk 0:00:41.2]} 53. Kf2 {[%clk 0:00:57.1]} 53... h4 {[%clk 0:00:41]} 54. Ra1
{[%clk 0:00:53.3]} 54... Rb3 {[%clk 0:00:40.2]} 55. Kg2 {[%clk 0:00:53]} 55...
Rb2+ {[%clk 0:00:39.9]} 56. Kh1 {[%clk 0:00:53.3]} 56... h3 {[%clk 0:00:36.8]}
57. Ra4+ {[%clk 0:00:51.6]} 57... Kh5 {[%clk 0:00:36.8]} 58. Rc4 {[%clk
0:00:48.7]} 58... g4 {[%clk 0:00:36.2]} 59. Ra4 {[%clk 0:00:46.4]} 59... Kh4
{[%clk 0:00:36.1]} 60. Rc4 {[%clk 0:00:46.2]} 60... Rf2 {[%clk 0:00:32.5]} 61.
Ra4 {[%clk 0:00:45.7]} 61... Kg3 {[%clk 0:00:30.9]} 62. Ra3+ {[%clk 0:00:41.9]}
62... Rf3 {[%clk 0:00:31]} 63. Ra1 {[%clk 0:00:42.5]} 63... Re3 {[%clk
0:00:27.7]} 64. Kg1 {[%clk 0:00:39.9]} 64... Kf3 {[%clk 0:00:26.2]} 65. Rf1+
{[%clk 0:00:39]} 65... Kg3 {[%clk 0:00:23.6]} 66. Ra1 {[%clk 0:00:38.6]} 66...
h2+ {[%clk 0:00:13.7]} 67. Kh1 {[%clk 0:00:38.9]} 67... Re2 {[%clk 0:00:03.2]}
68. Ra3+ {[%clk 0:00:37.7]} 68... Kh4 {[%clk 0:00:03.4]} 69. Rh3+ {[%clk
0:00:36.1]} 69... Kg5 {[%clk 0:00:01.6]} 70. Rh5+ {[%clk 0:00:36.4]} 70... Kf4
{[%clk 0:00:01.4]} 71. Rf5+ {[%clk 0:00:36.6]} 71... Kg3 {[%clk 0:00:01.4]} 72.
Rf3+ {[%clk 0:00:36.5]} 72... Kxf3 {[%clk 0:00:01.6]} 1/2-1/2

[Event "*** Titled Tuesday Blitz"]
[Site "Chess.com"]
[Date "2020.05.19"]
[Round "9"]
[White "JLRHei"]
[Black "Pavel_Mir"]
[Result "0-1"]
[WhiteElo "2317"]
[BlackElo "2205"]
[TimeControl "180+1"]
[EndTime "13:47:49 PDT"]
[Termination "Pavel_Mir won by resignation"]

1. d4 {[%clk 0:03:00.8]} 1... Nf6 {[%clk 0:02:37.5]} 2. c4 {[%clk 0:03:00.9]}
2... c6 {[%clk 0:02:37.7]} 3. Nf3 {[%clk 0:03:01.3]} 3... d5 {[%clk 0:02:38.2]}
4. g3 {[%clk 0:03:02.2]} 4... g6 {[%clk 0:02:36.5]} 5. Bg2 {[%clk 0:03:02.4]}
5... Bg7 {[%clk 0:02:37.2]} 6. O-O {[%clk 0:03:03.3]} 6... O-O {[%clk
0:02:37.2]} 7. Nbd2 {[%clk 0:03:04]} 7... dxc4 {[%clk 0:02:28.7]} 8. Nxc4 {[%clk
0:03:04.1]} 8... Be6 {[%clk 0:02:27.9]} 9. Nce5 {[%clk 0:03:00.2]} 9... Nbd7
{[%clk 0:02:24.1]} 10. b3 {[%clk 0:02:57.3]} 10... Bd5 {[%clk 0:02:22.4]} 11.
Bb2 {[%clk 0:02:56.7]} 11... Nxe5 {[%clk 0:02:19.9]} 12. dxe5 {[%clk 0:02:57.6]}
12... Ng4 {[%clk 0:02:11.2]} 13. Qc2 {[%clk 0:02:11]} 13... Bxf3 {[%clk
0:02:06.2]} 14. Bxf3 {[%clk 0:02:11.3]} 14... Nxe5 {[%clk 0:02:05.6]} 15. Bg2
{[%clk 0:02:11.7]} 15... Qc7 {[%clk 0:01:56.4]} 16. Rac1 {[%clk 0:02:08.6]}
16... Rad8 {[%clk 0:01:52.5]} 17. a4 {[%clk 0:01:56.7]} 17... h5 {[%clk
0:01:45.5]} 18. Ba3 {[%clk 0:01:51.2]} 18... Rd7 {[%clk 0:01:31.4]} 19. Qc5
{[%clk 0:01:37.8]} 19... a6 {[%clk 0:01:23.1]} 20. h3 {[%clk 0:01:25.2]} 20...
Rfd8 {[%clk 0:01:05.9]} 21. Bb4 {[%clk 0:01:22.7]} 21... b6 {[%clk 0:00:56.3]}
22. Qe3 {[%clk 0:01:17.6]} 22... a5 {[%clk 0:00:54]} 23. Bc3 {[%clk 0:01:14.6]}
23... c5 {[%clk 0:00:50.3]} 24. Kh2 {[%clk 0:01:10.1]} 24... Nc6 {[%clk
0:00:45.4]} 25. Bxg7 {[%clk 0:00:54.8]} 25... Kxg7 {[%clk 0:00:45.3]} 26. Qc3+
{[%clk 0:00:55.4]} 26... Kg8 {[%clk 0:00:41.3]} 27. e3 {[%clk 0:00:55.8]} 27...
Rd3 {[%clk 0:00:39.5]} 28. Qc4 {[%clk 0:00:49.7]} 28... Ne5 {[%clk 0:00:33.4]}
29. Qb5 {[%clk 0:00:46]} 29... h4 {[%clk 0:00:27.9]} 30. Rce1 {[%clk 0:00:20.5]}
30... Rd2 {[%clk 0:00:25.4]} 31. Kh1 {[%clk 0:00:18.4]} 31... Nd3 {[%clk
0:00:23.8]} 32. Rb1 {[%clk 0:00:11.8]} 32... Nxf2+ {[%clk 0:00:21.3]} 33. Kg1
{[%clk 0:00:12.7]} 33... Qxg3 {[%clk 0:00:19.6]} 34. Qc6 {[%clk 0:00:12.7]}
34... Nxh3+ {[%clk 0:00:19.3]} 35. Kh1 {[%clk 0:00:13]} 35... Nf2+ {[%clk
0:00:19.3]} 36. Kg1 {[%clk 0:00:13.3]} 36... h3 {[%clk 0:00:19.7]} 37. Qf3
{[%clk 0:00:11.1]} 37... Qxg2+ {[%clk 0:00:18.5]} 38. Qxg2 {[%clk 0:00:12]}
38... hxg2 {[%clk 0:00:19]} 39. Kxg2 {[%clk 0:00:12.9]} 39... Nd3+ {[%clk
0:00:18.9]} 40. Kf3 {[%clk 0:00:13.1]} 40... Ne5+ {[%clk 0:00:19]} 41. Ke4
{[%clk 0:00:13.4]} 41... f6 {[%clk 0:00:19.1]} 42. Rg1 {[%clk 0:00:12.2]} 42...
Kf7 {[%clk 0:00:19.4]} 43. Rbf1 {[%clk 0:00:11.6]} 43... Ke6 {[%clk 0:00:19.5]}
44. Rh1 {[%clk 0:00:12.2]} 44... g5 {[%clk 0:00:19.8]} 45. Rh6 {[%clk
0:00:11.9]} 45... Rb2 {[%clk 0:00:19.5]} 46. Rg1 {[%clk 0:00:11.5]} 46... Rxb3
{[%clk 0:00:19.6]} 47. Rxg5 {[%clk 0:00:12.1]} 47... Rdd3 {[%clk 0:00:19.8]} 48.
Rxe5+ {[%clk 0:00:12.4]} 48... Kd7 {[%clk 0:00:19.3]} 49. Rf5 {[%clk 0:00:12.2]}
49... Rxe3+ {[%clk 0:00:19]} 50. Kf4 {[%clk 0:00:13.1]} 50... Rf3+ {[%clk
0:00:19]} 51. Kg4 {[%clk 0:00:13.7]} 51... Rxf5 {[%clk 0:00:19.1]} 52. Kxf5
{[%clk 0:00:14.6]} 52... Rb4 {[%clk 0:00:18.8]} 53. Rh5 {[%clk 0:00:14.2]} 53...
Rxa4 {[%clk 0:00:18.3]} 54. Rh2 {[%clk 0:00:15.1]} 54... Ra3 {[%clk 0:00:17.9]}
55. Rb2 {[%clk 0:00:15.6]} 55... a4 {[%clk 0:00:16.1]} 56. Rxb6 {[%clk
0:00:15.4]} 56... Rb3 {[%clk 0:00:16.4]} 57. Ra6 {[%clk 0:00:15]} 57... a3
{[%clk 0:00:16.8]} 58. Ra7+ {[%clk 0:00:15.2]} 58... Kd6 {[%clk 0:00:16.8]} 59.
Ra6+ {[%clk 0:00:15.2]} 59... Kd5 {[%clk 0:00:16.8]} 60. Ra7 {[%clk 0:00:15.5]}
60... Kc4 {[%clk 0:00:17.2]} 61. Rxe7 {[%clk 0:00:15.1]} 61... Kc3 {[%clk
0:00:17.5]} 62. Kxf6 {[%clk 0:00:14.6]} 62... Kb2 {[%clk 0:00:17.8]} 63. Ke5
{[%clk 0:00:14.4]} 63... a2 {[%clk 0:00:17.9]} 64. Ra7 {[%clk 0:00:15.3]} 64...
a1=Q {[%clk 0:00:17.6]} 0-1